bitfinex/quotes_SOLUSD_20260124
["timestamp","ask_amount","ask_price","bid_price","bid_amount"]
[1769241125076,2.17764831,127.31,127.27,0.45308965]
[1769241125268,5.48702998,127.3,127.27,0.45308965]
[1769241125568,2.17764831,127.31,127.27,0.45308965]
[1769241125778,5.48702747,127.3,127.27,0.45308965]
[1769241125964,2.17764831,127.31,127.27,0.45308965]
[1769241126163,5.48702885,127.3,127.27,0.45308965]
[1769241126381,2.17764831,127.31,127.27,0.45308965]
[1769241126573,5.48702848,127.3,127.27,0.45308965]
[1769241126772,2.17764831,127.31,127.27,0.45308965]
[1769241126973,5.4870271,127.3,127.27,0.45308965]
[1769241127173,2.17764831,127.31,127.27,0.45308965]
[1769241127375,5.48701011,127.3,127.27,0.45308965]
[1769241127671,2.17764831,127.31,127.27,0.45308965]
[1769241127863,5.48702745,127.3,127.27,0.45308965]
[1769241128062,2.17764831,127.31,127.27,0.45308965]
[1769241128272,5.48702608,127.3,127.27,0.45308965]
[1769241128564,2.17764831,127.31,127.27,0.45308965]
[1769241128765,5.48702505,127.3,127.27,0.45308965]
[1769241128969,2.17764831,127.31,127.27,0.45308965]
[1769241129287,5.48702505,127.3,127.27,0.45308965]
[1769241129587,2.17764831,127.31,127.27,0.45308965]
[1769241129787,5.48747454,127.3,127.27,0.45308965]
[1769241129989,2.17764831,127.31,127.27,0.45308965]
[1769241130292,5.48747454,127.3,127.27,0.45308965]
[1769241130463,2.17764831,127.31,127.27,0.45308965]
[1769241130664,5.48747214,127.3,127.27,0.45308965]
[1769241130872,2.17764831,127.31,127.27,0.45308965]
[1769241131089,5.48747352,127.3,127.27,0.45308965]
[1769241131386,2.17764831,127.31,127.27,0.45308965]
[1769241131579,5.4877195,127.3,127.27,0.45308965]
[1769241131779,2.17764831,127.31,127.27,0.45308965]
[1769241131981,5.48772425,127.3,127.27,0.45308965]
[1769241132264,2.17764831,127.31,127.27,0.45308965]
[1769241132463,5.48772526,127.3,127.27,0.45308965]
[1769241132765,2.17764831,127.31,127.27,0.45308965]
[1769241132973,5.48772526,127.3,127.27,0.45308965]
[1769241133274,2.17764831,127.31,127.27,0.45308965]
[1769241133472,5.48772489,127.3,127.27,0.45308965]
[1769241133767,2.17764831,127.31,127.27,0.45308965]
[1769241134091,5.48772489,127.3,127.27,0.45308965]
[1769241134275,2.17764831,127.31,127.27,0.45308965]
[1769241134477,5.48772314,127.3,127.27,0.45308965]
[1769241134691,2.17764831,127.31,127.27,0.45308965]
[1769241134896,5.48772452,127.3,127.27,0.45308965]
[1769241135191,2.17764831,127.31,127.27,0.45308965]
[1769241135392,5.48770746,127.3,127.27,0.45308965]
[1769241135592,2.17764831,127.31,127.27,0.45308965]
[1769241135777,5.48789454,127.3,127.27,0.45308965]
[1769241135977,2.17764831,127.31,127.27,0.45308965]
[1769241136181,5.48789454,127.3,127.27,0.45308965]
[1769241136365,2.17764831,127.31,127.27,0.45308965]
[1769241136566,5.48789315,127.3,127.27,0.45308965]
[1769241136786,2.17764831,127.31,127.27,0.45308965]
[1769241136979,5.48789315,127.3,127.27,0.45308965]
[1769241137179,2.17764831,127.31,127.27,0.45308965]
[1769241137391,5.48787462,127.3,127.27,0.45308965]
[1769241137576,2.17764831,127.31,127.27,0.45308965]
[1769241137779,5.48789097,127.3,127.27,0.45308965]
[1769241138078,2.17764831,127.31,127.27,0.45308965]
[1769241138276,5.48789097,127.3,127.27,0.45308965]
[1769241138578,2.17764831,127.31,127.27,0.45308965]
[1769241138891,5.48789025,127.3,127.27,0.45308965]
[1769241139078,2.17764831,127.31,127.27,0.45308965]
[1769241139277,5.48787165,127.3,127.27,0.45308965]
[1769241139467,2.17764831,127.31,127.27,0.45308965]
[1769241139668,5.48788186,127.3,127.27,0.45308965]
[1769241139967,2.17764831,127.31,127.27,0.45308965]
[1769241140167,5.48788186,127.3,127.27,0.45308965]
[1769241140368,2.17764831,127.31,127.27,0.45308965]
[1769241140670,5.48788316,127.3,127.27,0.45308965]
[1769241140869,2.17764831,127.31,127.27,0.45308965]
[1769241141068,5.48833501,127.3,127.27,0.45308965]
[1769241141276,2.17764831,127.31,127.27,0.45308965]
[1769241141492,5.48833494,127.3,127.27,0.45308965]
[1769241141672,2.17764831,127.31,127.27,0.45308965]
[1769241141872,5.48833256,127.3,127.27,0.45308965]
[1769241142073,2.17764831,127.31,127.27,0.45308965]
[1769241142280,5.48833118,127.3,127.27,0.45308965]
[1769241142479,2.17764831,127.31,127.27,0.45308965]
[1769241142780,5.48833185,127.3,127.27,0.45308965]
[1769241142980,2.17764831,127.31,127.27,0.45308965]
[1769241143281,5.48833047,127.3,127.27,0.45308965]
[1769241143481,2.17764831,127.31,127.27,0.45308965]
[1769241143482,0.06202607,127.31,127.27,0.45308965]
[1769241143779,5.48833113,127.3,127.27,0.45308965]
[1769241143964,0.06202607,127.31,127.27,0.45308965]
[1769241144170,5.48832975,127.3,127.27,0.45308965]
[1769241144395,0.06202607,127.31,127.27,0.45308965]
[1769241144689,5.48832968,127.3,127.27,0.45308965]
[1769241144891,0.06202607,127.31,127.27,0.45308965]
[1769241145072,5.48833344,127.3,127.27,0.45308965]
[1769241145274,0.06202607,127.31,127.27,0.45308965]
[1769241145475,5.48832961,127.3,127.27,0.45308965]
[1769241145693,0.06202607,127.31,127.27,0.45308965]
[1769241145898,5.48833099,127.3,127.27,8.31213761]
[1769241146085,7.92107403,127.31,127.27,8.31213761]
[1769241146272,5.48833337,127.3,127.27,8.31213761]
[1769241146566,7.92107403,127.31,127.27,8.31213761]
[1769241146765,5.4883289,127.3,127.27,8.31213761]
[1769241147067,7.92107403,127.31,127.27,8.31213761]
[1769241147270,5.48833027,127.3,127.27,8.31213761]
[1769241147469,10.03669627,127.31,127.27,8.31213761]
[1769241147694,5.48837808,127.3,127.27,8.31213761]
[1769241147874,10.03669627,127.31,127.27,8.31213761]
[1769241148075,5.48837808,127.3,127.27,8.31213761]
[1769241148289,10.03669627,127.31,127.27,8.31213761]
[1769241148489,5.46633161,127.3,127.27,8.31213761]
[1769241148689,10.03669627,127.31,127.27,8.31213761]
[1769241148890,5.46633298,127.3,127.27,8.31213761]
[1769241149092,10.03669627,127.31,127.27,8.31213761]
[1769241149390,5.46633298,127.3,127.27,8.31213761]
[1769241149590,10.03669627,127.31,127.27,8.31213761]
[1769241149788,5.46639892,127.3,127.27,8.31213761]
[1769241149998,10.03669627,127.31,127.27,8.31213761]
[1769241150198,5.46639892,127.3,127.27,8.31213761]
[1769241150398,2.17764831,127.31,127.27,8.31213761]
[1769241150600,13.778611,127.3,127.27,8.31213761]
[1769241150797,8.31213761,127.3,127.27,8.31213761]
[1769241160411,5.46807669,127.29,127.27,8.31213761]
[1769241160603,8.31213761,127.3,127.27,8.31213761]
[1769241160790,5.46809267,127.29,127.27,8.31213761]
[1769241161110,8.31213761,127.3,127.27,8.31213761]
[1769241161290,5.46809404,127.29,127.27,8.31213761]
[1769241161493,8.31213761,127.3,127.27,8.31213761]
[1769241161789,5.46849153,127.29,127.27,8.31213761]
[1769241161989,8.31213761,127.3,127.27,8.31213761]
[1769241162209,5.46849153,127.29,127.27,8.31213761]
[1769241162391,8.31213761,127.3,127.27,8.31213761]
[1769241162689,5.46947796,127.29,127.27,8.31213761]
[1769241162889,8.31213761,127.3,127.27,8.31213761]
[1769241163110,5.46947658,127.29,127.27,8.31213761]
[1769241163422,8.31213761,127.3,127.27,8.31213761]
[1769241163611,5.46947638,127.29,127.27,8.31213761]
[1769241163811,8.31213761,127.3,127.27,8.31213761]
[1769241163997,5.46947638,127.29,127.27,8.31213761]
[1769241164200,8.31213761,127.3,127.27,8.31213761]
[1769241164498,5.46947614,127.29,127.27,8.31213761]
[1769241164682,8.31213761,127.3,127.27,8.31213761]
[1769241164887,5.4694748,127.29,127.27,8.31213761]
[1769241165113,8.31213761,127.3,127.27,8.31213761]
[1769241165307,5.46947568,127.29,127.27,8.31213761]
[1769241165606,8.31213761,127.3,127.27,8.31213761]
[1769241165808,5.46947729,127.29,127.27,8.32834581]
[1769241166006,8.31213761,127.3,127.27,8.32834581]
[1769241166308,5.46947592,127.29,127.27,8.32834581]
[1769241166486,8.31213761,127.3,127.27,8.32834581]
[1769241166686,5.46947896,127.29,127.27,8.32834581]
[1769241166913,8.31213761,127.3,127.27,8.32834581]
[1769241167091,5.46947896,127.29,127.27,8.32834581]
[1769241167298,8.31213761,127.3,127.27,8.32834581]
[1769241167498,5.46947537,127.29,127.27,8.32834581]
[1769241167693,8.31213761,127.3,127.27,8.32834581]
[1769241167889,5.469473,127.29,127.27,8.32834581]
[1769241168094,8.31213761,127.3,127.27,8.32834581]
[1769241168326,5.46947438,127.29,127.27,8.32834581]
[1769241168529,8.31213761,127.3,127.27,8.32834581]
[1769241168716,5.46947705,127.29,127.27,8.32834581]
[1769241169018,8.31213761,127.3,127.27,8.32834581]
[1769241169329,5.46947468,127.29,127.27,8.32834581]
[1769241169624,8.31213761,127.3,127.27,8.32834581]
[1769241169794,5.46947397,127.29,127.27,8.32834581]
[1769241169997,8.31213761,127.3,127.27,8.32834581]
[1769241170198,5.4694716,127.29,127.27,8.32834581]
[1769241170423,8.31213761,127.3,127.27,8.32834581]
[1769241170621,5.46946909,127.29,127.27,8.32834581]
[1769241170828,8.31213761,127.3,127.27,8.32834581]
[1769241170999,5.46943107,127.29,127.27,8.32834581]
[1769241171299,8.31213761,127.3,127.27,8.32834581]
[1769241171611,5.46942934,127.29,127.27,8.32834581]
[1769241171815,8.31213761,127.3,127.27,8.32834581]
[1769241172006,5.46943071,127.29,127.27,8.32834581]
[1769241172215,10.48973381,127.31,127.27,8.32834581]
[1769241172416,5.46943368,127.3,127.27,8.32834581]
[1769241172715,5.46943368,127.29,127.27,8.32834581]
[1769241172915,2.1775962,127.31,127.27,8.32834581]
[1769241173224,13.79777633,127.3,127.27,8.32834581]
[1769241173528,5.46943052,127.29,127.27,8.32834581]
[1769241179420,8.32834581,127.3,127.27,8.32834581]
[1769241179720,2.1775962,127.31,127.27,8.32834581]
[1769241179912,5.50610822,127.3,127.27,8.32834581]
[1769241180111,10.50594201,127.31,127.27,8.32834581]
[1769241180312,5.50610684,127.3,127.27,8.32834581]
[1769241180513,10.50594201,127.31,127.27,8.32834581]
[1769241180719,5.50769823,127.3,127.27,8.32834581]
[1769241180907,10.50594201,127.31,127.27,8.32834581]
[1769241181111,5.50776287,127.3,127.27,8.32834581]
[1769241181303,0.06160241,127.3,127.27,8.32834581]
[1769241182632,0.06160241,127.3,127.27,7.85904796]
[1769241182818,7.68365178,127.29,127.26,0.46929785]
[1769241183017,0.06159788,127.29,127.26,8.3287608]
[1769241184229,0.06159788,127.29,127.27,0.46929785]
[1769241187737,10.0366201,127.3,127.27,0.46929785]
[1769241187912,5.50614252,127.29,127.27,0.46929785]
[1769241188113,10.0366201,127.3,127.27,0.46929785]
[1769241188313,5.5061439,127.29,127.27,0.46929785]
[1769241188524,10.0366201,127.3,127.27,0.46929785]
[1769241188709,5.50597591,127.29,127.27,0.46929785]
[1769241188909,10.0366201,127.3,127.27,0.46929785]
[1769241189146,5.50597591,127.29,127.27,0.46929785]
[1769241189314,10.0366201,127.3,127.27,0.46929785]
[1769241189636,5.50582218,127.29,127.27,0.46929785]
[1769241189845,10.0366201,127.3,127.27,0.46929785]
[1769241190149,5.5057385,127.29,127.27,0.46929785]
[1769241190344,10.0366201,127.3,127.27,0.46929785]
[1769241190552,5.50560149,127.29,127.27,0.46929785]
[1769241190846,10.0366201,127.3,127.27,0.46929785]
[1769241191144,5.5055991,127.29,127.27,0.46929785]
[1769241191351,10.0366201,127.3,127.27,0.46929785]
[1769241191652,5.50547584,127.29,127.27,0.46929785]
[1769241191854,10.0366201,127.3,127.27,0.46929785]
[1769241192151,5.50547584,127.29,127.27,0.46929785]
[1769241192332,10.0366201,127.3,127.27,0.46929785]
[1769241192525,5.50536466,127.29,127.27,0.46929785]
[1769241192725,10.0366201,127.3,127.27,0.46929785]
[1769241192950,5.50536328,127.29,127.27,0.46929785]
[1769241193126,10.0366201,127.3,127.27,0.46929785]
[1769241193325,5.50531808,127.29,127.27,0.46929785]
[1769241193516,7.92104997,127.3,127.27,0.46929785]
[1769241193722,5.50532179,127.29,127.27,0.46929785]
[1769241193948,7.92104997,127.3,127.27,0.46929785]
[1769241194122,5.50532179,127.29,127.27,0.46929785]
[1769241194323,7.92104997,127.3,127.27,0.46929785]
[1769241194524,5.50532334,127.29,127.27,0.46929785]
[1769241194723,7.92104997,127.3,127.27,0.46929785]
[1769241194951,5.50532472,127.29,127.27,0.46929785]
[1769241195248,7.92104997,127.3,127.27,0.46929785]
[1769241195452,5.50536195,127.29,127.27,0.46929785]
[1769241195624,7.92104997,127.3,127.27,0.46929785]
[1769241195823,5.50532817,127.29,127.27,0.46929785]
[1769241196146,7.92104997,127.3,127.27,0.46929785]
[1769241196339,5.50532679,127.29,127.27,0.46929785]
[1769241196534,7.92104997,127.3,127.27,0.46929785]
[1769241196843,5.50532964,127.29,127.27,0.46929785]
[1769241197151,7.92104997,127.3,127.27,0.46929785]
[1769241197352,5.50532826,127.29,127.27,0.46929785]
[1769241197549,7.92104997,127.3,127.27,0.46929785]
[1769241197755,5.50533093,127.29,127.27,0.46929785]
[1769241197947,7.92104997,127.3,127.27,0.46929785]
[1769241200658,0.06158702,127.3,127.27,0.46929785]
[1769241200967,0.06158702,127.3,127.27,10.44339128]
[1769241205877,0.06158702,127.3,127.27,0.46929785]
[1769241211774,12.08966356,127.31,127.28,0.49468021]
[1769241211775,10.03563461,127.31,127.28,0.49468021]
[1769241212075,5.61079848,127.3,127.28,0.49468021]
[1769241212261,0.06154118,127.31,127.28,0.49468021]
[1769241212464,5.61046312,127.3,127.28,0.49468021]
[1769241212663,0.06154118,127.31,127.28,0.49468021]
[1769241212859,5.61048532,127.3,127.28,0.49468021]
[1769241213056,0.06154118,127.31,127.28,0.49468021]
[1769241213258,5.61049018,127.3,127.28,0.49468021]
[1769241213580,2.17711131,127.31,127.28,0.49468021]
[1769241213777,5.61021956,127.3,127.28,0.49468021]
[1769241213980,2.17711131,127.31,127.28,0.49468021]
[1769241214279,5.61021817,127.3,127.28,0.49468021]
[1769241214479,0.06154118,127.31,127.28,0.49468021]
[1769241214681,5.60997315,127.3,127.28,0.49468021]
[1769241214874,0.06154118,127.31,127.28,0.49468021]
[1769241215178,5.60997176,127.3,127.28,0.49468021]
[1769241215358,0.06154118,127.31,127.28,0.49468021]
[1769241215560,5.60974965,127.3,127.28,0.49468021]
[1769241215773,0.06154118,127.31,127.28,0.49468021]
[1769241215976,5.60975105,127.3,127.28,0.49468021]
[1769241216176,0.06154118,127.31,127.28,0.49468021]
[1769241216376,5.60975105,127.3,127.28,0.49468021]
[1769241216672,0.06154118,127.31,127.28,0.49468021]
[1769241216866,5.60954549,127.3,127.28,0.49468021]
[1769241217180,0.06154118,127.31,127.28,0.49468021]
[1769241217580,5.60910735,127.3,127.28,0.49468021]
[1769241217880,0.06154118,127.31,127.28,0.49468021]
[1769241218073,5.6093586,127.3,127.28,0.49468021]
[1769241218278,0.06154118,127.31,127.28,0.49468021]
[1769241218480,5.60919045,127.3,127.28,0.49468021]
[1769241218683,0.06154118,127.31,127.28,0.49468021]
[1769241218983,5.60919045,127.3,127.28,0.49468021]
[1769241219174,0.06154118,127.31,127.28,0.49468021]
[1769241219369,5.60919045,127.3,127.28,0.49468021]
[1769241219571,0.06154118,127.31,127.28,0.49468021]
[1769241219769,5.60903412,127.3,127.28,0.49468021]
[1769241219979,0.06154118,127.31,127.28,0.49468021]
[1769241220176,5.60903273,127.3,127.28,0.49468021]
[1769241220388,0.06154118,127.31,127.28,0.49468021]
[1769241220585,5.60889245,127.3,127.28,0.49468021]
[1769241220787,2.17711131,127.31,127.28,0.49468021]
[1769241220987,5.60889245,127.3,127.28,0.49468021]
[1769241221286,2.17681954,127.31,127.28,0.49468021]
[1769241221488,5.60876312,127.3,127.28,0.49468021]
[1769241221695,2.17681954,127.31,127.28,0.49468021]
[1769241221881,5.60876173,127.3,127.28,0.49468021]
[1769241222181,2.17681954,127.31,127.28,0.49468021]
[1769241222381,5.60876173,127.3,127.28,0.49468021]
[1769241222580,2.17681954,127.31,127.28,0.49468021]
[1769241222883,5.60864285,127.3,127.28,0.49468021]
[1769241223075,2.17681954,127.31,127.28,0.49468021]
[1769241230477,5.60864038,127.3,127.28,0.49468021]
[1769241230773,2.17681954,127.31,127.28,0.49468021]
[1769241230975,5.60859281,127.3,127.28,0.49468021]
[1769241231179,2.17681954,127.31,127.28,0.49468021]
[1769241231382,5.6085942,127.3,127.28,0.49468021]
[1769241231580,2.17681954,127.31,127.28,0.49468021]
[1769241231780,5.69725385,127.3,127.28,0.49468021]
[1769241231987,2.17681954,127.31,127.28,0.49468021]
[1769241232182,5.69725526,127.3,127.28,0.49468021]
[1769241232382,2.17681954,127.31,127.28,0.49468021]
[1769241232681,5.69746995,127.3,127.28,0.49468021]
[1769241232880,2.17681954,127.31,127.28,0.49468021]
[1769241233084,5.69746854,127.3,127.28,0.49468021]
[1769241233300,2.17681954,127.31,127.28,0.49468021]
[1769241233499,5.69771849,127.3,127.28,0.49468021]
[1769241233684,2.17681954,127.31,127.28,0.49468021]
[1769241233885,5.69771849,127.3,127.28,0.49468021]
[1769241234086,2.17681954,127.31,127.28,0.49468021]
[1769241234285,5.69771708,127.3,127.28,0.49468021]
[1769241234485,2.17681954,127.31,127.28,0.49468021]
[1769241234701,5.69800737,127.3,127.28,0.49468021]
[1769241234894,2.17681954,127.31,127.28,0.49468021]
[1769241235194,5.69800737,127.3,127.28,0.49468021]
[1769241235406,2.17681954,127.31,127.28,0.49468021]
[1769241235585,5.69834606,127.3,127.28,0.49468021]
[1769241235882,2.17681954,127.31,127.28,0.49468021]
[1769241236179,5.69881234,127.3,127.28,0.49468021]
[1769241236380,2.17681954,127.31,127.28,0.49468021]
[1769241236588,5.69920893,127.3,127.28,0.49468021]
[1769241236792,2.17681954,127.31,127.28,0.49468021]
[1769241237089,5.69921033,127.3,127.28,0.49468021]
[1769241237388,2.17681954,127.31,127.28,0.49468021]
[1769241237588,5.69968093,127.3,127.28,0.49468021]
[1769241237799,2.17681954,127.31,127.28,0.49468021]
[1769241237993,5.69968093,127.3,127.28,0.49468021]
[1769241238197,2.17681954,127.31,127.28,0.49468021]
[1769241238398,5.69967953,127.3,127.28,0.49468021]
[1769241238598,2.17681954,127.31,127.28,0.49468021]
[1769241238898,5.70918113,127.3,127.28,0.49468021]
[1769241239200,2.17681954,127.31,127.28,0.49468021]
[1769241239385,5.70917973,127.3,127.28,0.49468021]
[1769241239585,2.17681954,127.31,127.28,0.49468021]
[1769241239888,5.77267129,127.3,127.28,0.49468021]
[1769241240085,2.17681954,127.31,127.28,0.49468021]
[1769241240280,5.77267129,127.3,127.28,0.49468021]
[1769241240497,2.17681954,127.31,127.28,0.49468021]
[1769241240797,6.77281128,127.3,127.28,0.49468021]
[1769241241005,1.0,127.3,127.28,0.49468021]
[1769241255822,2.17681954,127.31,127.28,0.49468021]
[1769241256006,5.79301096,127.3,127.28,0.49468021]
[1769241256206,2.17681954,127.31,127.28,0.49468021]
[1769241256422,5.7929578,127.3,127.28,0.49468021]
[1769241256615,2.17681954,127.31,127.28,0.49468021]
[1769241256917,5.79342989,127.3,127.28,0.49468021]
[1769241257105,2.17681954,127.31,127.28,0.49468021]
[1769241257403,5.79337539,127.3,127.28,0.49468021]
[1769241257607,2.17681954,127.31,127.28,0.49468021]
[1769241257821,5.79335504,127.3,127.28,0.49468021]
[1769241258120,0.06154118,127.31,127.28,0.49468021]
[1769241258327,5.79330425,127.3,127.28,0.49468021]
[1769241258501,0.06154118,127.31,127.28,0.49468021]
[1769241258802,5.79329235,127.3,127.28,0.49468021]
[1769241259112,0.06154118,127.31,127.28,0.49468021]
[1769241259422,5.79324397,127.3,127.28,0.49468021]
[1769241259627,5.79324397,127.29,127.27,23.58397861]
[1769241259927,0.06154118,127.31,127.27,23.58397861]
[1769241260102,5.79332947,127.3,127.27,23.58397861]
[1769241260301,5.79332947,127.29,127.27,23.58397861]
[1769241260498,0.8,127.3,127.27,23.58397861]
[1769241260700,5.79162288,127.29,127.27,23.58397861]
[1769241260896,0.8,127.3,127.27,23.58397861]
[1769241261119,5.79153274,127.29,127.27,23.58397861]
[1769241261316,0.8,127.3,127.27,23.58397861]
[1769241261514,0.8,127.3,127.28,0.46778339]
[1769241261825,5.79051684,127.29,127.28,0.46778339]
[1769241269224,0.8,127.3,127.28,0.46778339]
[1769241269431,5.8132254,127.29,127.28,0.46778339]
[1769241269835,5.81313971,127.29,127.28,0.46778339]
[1769241272433,5.81228518,127.29,127.28,0.46778339]
[1769241281556,0.8,127.3,127.28,0.46778339]
[1769241301570,1.29563823,127.3,127.28,0.46778339]
[1769241321056,0.49563823,127.3,127.28,0.46778339]
[1769241321258,0.49856423,127.28,127.25,0.46647795]
[1769241321457,2.61377793,127.28,127.25,0.46647795]
[1769241322769,10.41377793,127.28,127.25,0.46647795]
[1769241322962,10.41377793,127.28,127.25,24.05416517]
[1769241326180,10.41377793,127.28,127.25,0.46647795]
[1769241342887,7.8,127.28,127.26,0.49375802]
[1769241360302,8.25472236,127.28,127.26,0.49375802]
[1769241362081,7.8,127.28,127.26,0.49375802]
[1769241362301,8.27518927,127.28,127.26,0.49375802]
[1769241380140,7.8,127.28,127.26,0.49375802]
[1769241385853,8.26186335,127.28,127.25,2.11592294]
[1769241386150,8.26186335,127.28,127.25,0.47444939]
[1769241391535,7.8,127.28,127.25,0.47444939]
[1769241394461,8.28668849,127.28,127.25,0.47444939]
[1769241395962,7.8,127.28,127.25,0.47444939]
[1769241396561,8.28668849,127.28,127.25,0.47444939]
[1769241398562,7.8,127.28,127.25,0.47444939]
[1769241411378,7.8,127.28,127.25,2.59041648]
[1769241411879,7.8,127.28,127.25,0.47444939]
[1769241420387,8.28668849,127.28,127.25,0.47444939]
[1769241424898,0.48668849,127.28,127.25,0.47444939]
[1769241426596,8.28668849,127.28,127.25,0.47444939]
[1769241431504,0.47301369,127.27,127.24,24.08550956]
[1769241431803,2.58898078,127.27,127.23,0.49782234]
[1769241431985,0.47301369,127.26,127.23,0.49782234]
[1769241439490,0.47301369,127.26,127.23,2.61378943]
[1769241439697,0.47301369,127.26,127.23,0.49782234]
[1769241443013,0.47301369,127.26,127.23,2.61378943]
[1769241444214,0.47301369,127.26,127.23,0.49782234]
[1769241445317,0.47301369,127.26,127.22,2.61378943]
[1769241445494,0.47301369,127.26,127.22,10.41378943]
[1769241446516,0.47301369,127.26,127.22,2.61378943]
[1769241446903,0.47301369,127.26,127.22,10.41378943]
[1769241448218,0.47301369,127.26,127.22,2.61378943]
[1769241448406,0.47301369,127.26,127.23,7.8]
[1769241450813,0.47301369,127.26,127.23,8.29782234]
[1769241464730,0.47301369,127.26,127.23,10.41378943]
[1769241464911,0.47301369,127.26,127.23,10.41449226]
[1769241468434,0.47301369,127.26,127.23,8.29782234]
[1769241478645,2.58968361,127.26,127.23,8.29782234]
[1769241479247,2.58968361,127.26,127.23,0.49782234]
[1769241480651,0.50000258,127.25,127.22,8.78856664]
[1769241481550,0.50000258,127.25,127.23,0.4907443]
[1769241481757,2.6166725,127.25,127.22,8.78856664]
[1769241482045,0.50000258,127.24,127.22,8.78856664]
[1769241482225,0.50000258,127.24,127.22,0.4907443]
[1769241487560,15.40000258,127.24,127.22,0.4907443]
[1769241488850,15.40000258,127.24,127.2,5.36268431]
[1769241488851,0.46274781,127.23,127.2,0.58992969]
[1769241489054,2.57941773,127.23,127.2,0.58992969]
[1769241491878,2.57941773,127.22,127.2,0.1]
[1769241492071,10.44154412,127.22,127.2,0.1]
[1769241492555,25.34154412,127.22,127.2,0.1]
[1769241492872,10.44154412,127.22,127.2,0.1]
[1769241493360,2.57941773,127.22,127.2,0.1]
[1769241495177,3.14675687,127.23,127.2,0.58992969]
[1769241495482,0.46274781,127.23,127.21,0.48992969]
[1769241495676,2.57941773,127.23,127.2,0.58992969]
[1769241497473,14.9,127.22,127.2,0.58992969]
[1769241498474,2.11666992,127.21,127.2,0.1]
[1769241498777,17.47941773,127.22,127.2,0.1]
[1769241499153,17.47941773,127.22,127.18,0.48992969]
[1769241499154,0.45608863,127.2,127.18,0.48992969]
[1769241499967,2.57275855,127.21,127.18,0.48992969]
[1769241505879,16.88196623,127.21,127.18,0.48992969]
[1769241506693,2.57275855,127.21,127.18,0.48992969]
[1769241507071,2.57275818,127.19,127.16,0.48992969]
[1769241508791,2.11666992,127.18,127.16,0.48992969]
[1769241509995,17.01666992,127.18,127.16,0.48992969]
[1769241510874,14.9,127.18,127.16,0.48992969]
[1769241515984,13.35608111,127.18,127.17,0.48899812]
[1769241516508,13.35608111,127.18,127.15,0.1]
[1769241516689,2.61667161,127.19,127.15,0.1]
[1769241518008,2.61667161,127.18,127.15,0.1]
[1769241519504,0.50000169,127.18,127.15,0.1]
[1769241522106,2.61667161,127.18,127.15,0.1]
[1769241523400,2.61667161,127.19,127.15,0.1]
[1769241524210,0.50000169,127.18,127.15,0.1]
[1769241525310,2.61667161,127.18,127.15,0.1]
[1769241526913,2.61964445,127.18,127.15,0.1]
[1769241527911,17.51964445,127.18,127.15,0.1]
[1769241528112,2.61964445,127.18,127.15,0.1]
[1769241529310,2.61964445,127.2,127.15,2.21964276]
[1769241529512,0.50000169,127.2,127.16,2.11964276]
[1769241531490,2.61964445,127.2,127.15,2.21964276]
[1769241532918,14.9,127.19,127.15,2.21964276]
[1769241536316,15.40000169,127.19,127.15,2.21964276]
[1769241539115,0.50000169,127.18,127.15,0.1]
[1769241542830,15.40000169,127.18,127.15,0.1]
[1769241543031,0.50000169,127.18,127.15,0.1]
[1769241547843,15.40000169,127.18,127.15,0.1]
[1769241548043,0.50000169,127.18,127.15,0.1]
[1769241552918,15.40000169,127.18,127.15,0.1]
[1769241563053,14.9,127.18,127.15,2.21964276]
[1769241563245,0.50000169,127.2,127.16,2.11964276]
[1769241563541,2.11964276,127.21,127.15,0.1]
[1769241563542,0.50000169,127.18,127.15,0.1]
[1769241563715,0.50000169,127.18,127.15,16.82885044]
[1769241563916,0.50000169,127.18,127.15,0.1]
[1769241568636,15.40000169,127.18,127.15,0.1]
[1769241568843,0.50000169,127.18,127.15,0.1]
[1769241572750,0.50000169,127.18,127.15,2.21964276]
[1769241573560,15.40000169,127.18,127.15,2.21964276]
[1769241573845,0.50000169,127.18,127.15,2.21964276]
[1769241574052,0.50000169,127.18,127.15,0.1]
[1769241575437,0.50000169,127.18,127.15,2.21964276]
[1769241576054,0.50000169,127.21,127.17,2.11964276]
[1769241576256,6.36090482,127.2,127.18,2.11964276]
[1769241576443,0.50000169,127.2,127.18,2.11964276]
[1769241580284,0.50000169,127.2,127.17,2.11964276]
[1769241581379,0.50000169,127.19,127.15,0.1]
[1769241581573,0.50000169,127.18,127.15,0.1]
[1769241582680,2.61964445,127.17,127.15,0.1]
[1769241582986,0.50000169,127.17,127.15,0.1]
[1769241590382,0.49225924,127.16,127.14,0.1]
[1769241594968,2.11979873,127.17,127.13,0.1]
[1769241594969,0.49225924,127.14,127.13,0.1]
[1769241600177,0.49225924,127.18,127.13,0.29999783]
[1769241600394,0.49225924,127.16,127.13,0.29999783]
[1769241600776,0.49225924,127.15,127.13,0.1]
[1769241603003,0.49870684,127.14,127.12,0.1]
[1769241603601,2.61850557,127.14,127.12,0.1]
[1769241603796,2.61850557,127.14,127.1,2.21979873]
[1769241603797,0.49870684,127.12,127.1,0.1]
[1769241605005,2.11979873,127.14,127.1,0.49999776]